fUSD/lending_fUSD_20241227
["ID","MTS","AMOUNT","RATE_DAILY","PERIOD"]
[346786096,1735287040299,-1185.65,0.00012659,2]
[346786099,1735287040310,-789.86,0.00012659,2]
[346786101,1735287040320,-500.0,0.00012659,2]
[346786103,1735287040331,-1045.11,0.00012659,2]
[346786105,1735287040341,-2261.45,0.00012659,2]
[346786107,1735287040352,-538.76,0.00012659,2]
[346786109,1735287040362,-608.20505521,0.00012659,2]
[346786111,1735287040372,-500.0,0.00012659,2]
[346786113,1735287040382,-1118.41,0.00012659,2]
[346786115,1735287040392,-2418.29,0.00012659,2]
[346786117,1735287040402,-684.22,0.00012659,2]
[346786119,1735287040412,-1206.75,0.00012659,2]
[346786121,1735287040422,-500.0,0.00012659,2]
[346786123,1735287040432,-695.38812737,0.00012659,2]
[346786209,1735287041344,-500.0,0.00011999,2]
[346786211,1735287041354,-2240.44240737,0.00012,2]
[346786213,1735287041364,-500.0,0.00012658,2]
[346786215,1735287041373,-1045.74187263,0.00012659,2]
[346786217,1735287041383,-713.81572,0.00012659,2]
[346786221,1735287041409,-44.93428,0.00012659,2]
[346786223,1735287041419,-335.890164,0.00012659,2]
[346786225,1735287041431,-537.49993158,0.00012659,2]
[346786227,1735287041443,-79.37990442,0.00012659,2]
[346786230,1735287041453,-174.52767916,0.00012659,2]
[346786232,1735287041466,-669.83232084,0.00012659,2]
[346786234,1735287041475,-182.39663782,0.00012659,2]
[346786237,1735287041501,-317.60336218,0.00012659,2]
[346786239,1735287041510,-4103.45,0.00012659,2]
[346786241,1735287041520,-931.04,0.00012659,2]
[346786243,1735287041529,-1299.25,0.00012659,2]
[346786245,1735287041539,-500.0,0.00012659,2]
[346786247,1735287041549,-500.0,0.00012659,2]
[346786250,1735287041560,-668.51,0.00012659,2]
[346786251,1735287041569,-500.0,0.00012659,2]
[346786254,1735287041581,-3687.75,0.00012659,2]
[346786256,1735287041591,-6848.66,0.00012659,2]
[346786257,1735287041600,-500.0,0.0001266,2]
[346786259,1735287041609,-513.6856383,0.0001266,2]
[346786261,1735287041620,-500.0,0.0001266,2]
[346786264,1735287041630,-500.0,0.0001266,2]
[346786266,1735287041639,-500.0,0.0001266,2]
[346786268,1735287041649,-645.06,0.0001266,2]
[346786270,1735287041658,-500.0,0.0001266,2]
[346786272,1735287041669,-500.0,0.0001266,2]
[346786274,1735287041679,-500.0,0.0001266,2]
[346786276,1735287041689,-500.0,0.0001266,2]
[346786278,1735287041700,-500.0,0.0001266,2]
[346786280,1735287041710,-678.11,0.0001266,2]
[346786282,1735287041719,-500.0,0.0001266,2]
[346786284,1735287041729,-500.0,0.0001266,2]
[346786286,1735287041738,-3424.91,0.0001266,2]
[346786288,1735287041747,-500.0,0.0001266,2]
[346786290,1735287041757,-12981.12,0.0001266,2]
[346786292,1735287041766,-3852.16,0.0001266,2]
[346786294,1735287041776,-5969.91,0.0001266,2]
[346786296,1735287041786,-4034.57,0.0001266,2]
[346786298,1735287041795,-2919.18,0.0001266,2]
[346786300,1735287041805,-509.57,0.0001266,2]
[346786302,1735287041814,-2435.94,0.0001266,2]
[346786304,1735287041824,-6301.43,0.0001266,2]
[346786306,1735287041835,-555.83,0.0001266,2]
[346786308,1735287041845,-1350.65,0.0001266,2]
[346786311,1735287041855,-500.0,0.00012661,2]
[346786313,1735287041864,-500.0,0.00012661,2]
[346786315,1735287041874,-500.0,0.00012661,2]
[346786317,1735287041884,-753.4,0.00012661,2]
[346786319,1735287041893,-1919.88,0.00012661,2]
[346786321,1735287041902,-1272.59,0.00012661,2]
[346786323,1735287041914,-2137.47,0.00012662,2]
[346786325,1735287041924,-1779.23,0.00012662,2]
[346786327,1735287041933,-2808.02,0.00012662,2]
[346786329,1735287041943,-4058.3,0.00012662,2]
[346786331,1735287041952,-14959.19,0.00012662,2]
[346786333,1735287041962,-1476.4,0.00012662,2]
[346786335,1735287041972,-1029.02,0.00012662,2]
[346786337,1735287041981,-781.71,0.00012662,2]
[346786339,1735287041991,-1969.76,0.00012662,2]
[346786341,1735287042002,-11548.02,0.00012662,2]
[346786343,1735287042011,-500.0,0.00012662,2]
[346786345,1735287042020,-1622.22,0.00012662,2]
[346786347,1735287042030,-1261.46,0.00012662,2]
[346786349,1735287042039,-1175.1,0.00012662,2]
[346786351,1735287042049,-3030.36,0.00012662,2]
[346786353,1735287042058,-500.0,0.00012662,2]
[346786355,1735287042067,-500.0,0.00012662,2]
[346786357,1735287042076,-1000.0,0.00012662,2]
[346786359,1735287042086,-971.91,0.00012662,2]
[346786361,1735287042095,-600.79,0.00012662,2]
[346786363,1735287042104,-500.0,0.00012662,2]
[346786365,1735287042113,-1586.79,0.00012662,2]
[346786367,1735287042122,-1564.88,0.00012662,2]
[346786369,1735287042132,-4637.462496,0.00012671,2]
[346786371,1735287042142,-501.07237705,0.00012673,2]
[346786373,1735287042152,-500.0,0.00012687,2]
[346786375,1735287042161,-150.0,0.00012691,2]
[346786377,1735287042172,-150.0,0.00012698,2]
[346786379,1735287042182,-900.0,0.000127,4]
[346786381,1735287042194,-1004.0,0.000127,2]
[346786383,1735287042203,-4637.462496,0.00012709,2]
[346786385,1735287042213,-4637.462496,0.00012748,2]
[346786387,1735287042224,-150.0,0.0001275,2]
[346786389,1735287042233,-150.0,0.0001275,2]
[346786391,1735287042242,-179.602,0.00012766,2]
[346786393,1735287042251,-2866.692,0.00012766,2]
[346786395,1735287042261,-4637.462496,0.00012786,2]
[346786397,1735287042270,-153.0,0.000128,2]
[346786399,1735287042279,-153.0,0.000128,2]
[346786401,1735287042289,-153.0,0.000128,2]
[346786403,1735287042298,-153.0,0.000128,2]
[346786405,1735287042308,-153.0,0.000128,2]
[346786407,1735287042317,-153.0,0.000128,2]
[346786409,1735287042327,-153.0,0.000128,2]
[346786411,1735287042339,-900.0,0.000128,4]
[346786413,1735287042348,-8499.19066899,0.00012805,2]
[346786415,1735287042358,-150.0,0.00012809,2]
[346786417,1735287042368,-2729.82,0.00012821,2]
[346786419,1735287042379,-2765.55,0.00012821,2]
[346786421,1735287042389,-685.13,0.00012821,2]
[346786423,1735287042399,-500.0,0.00012821,2]
[346786425,1735287042409,-1777.3,0.00012821,2]
[346786427,1735287042420,-150.0,0.00012822,2]
[346786429,1735287042431,-4637.462496,0.00012824,2]
[346786431,1735287042441,-166.60393875,0.00012831,2]
[346786433,1735287042450,-150.0,0.00012842,2]
[346786435,1735287042460,-331.49,0.00012846,2]
[346786438,1735287042470,-4637.462496,0.00012862,2]
[346786439,1735287042479,-150.0,0.00012868,2]
[346786441,1735287042488,-150.0,0.00012868,2]
[346786443,1735287042498,-9162.18039283,0.0001287,2]
[346786445,1735287042507,-3000.0,0.0001287,2]
[346786447,1735287042516,-150.0,0.00012875,2]
[346786449,1735287042525,-1000.0,0.00012886,2]
[346786451,1735287042535,-168.2925184,0.000129,2]
[346786453,1735287042544,-900.0,0.000129,4]
[346786455,1735287042554,-4637.462496,0.000129,2]
[346786457,1735287042563,-10505.15993878,0.000129,2]
[346786459,1735287042572,-802.07287868,0.000129,2]
[346786461,1735287042582,-485.00947886,0.000129,2]
[346786463,1735287042591,-263.05,0.00012915,2]
[346786465,1735287042601,-150.0,0.00012927,2]
[346786467,1735287042610,-4486.41,0.0001293,2]
[346786469,1735287042619,-6592.64,0.0001293,2]
[346786471,1735287042629,-2396.5,0.0001293,2]
[346786473,1735287042638,-7790.65,0.0001293,2]
[346786475,1735287042647,-4667.24,0.0001293,2]
[346786477,1735287042657,-3243.19,0.0001293,2]
[346786479,1735287042666,-6550.82,0.0001293,2]
[346786481,1735287042675,-3303.41,0.0001293,2]
[346786483,1735287042684,-500.0,0.0001293,2]
[346786485,1735287042694,-2200.41,0.0001293,2]
[346786487,1735287042703,-6989.63,0.0001293,2]
[346786489,1735287042713,-2506.105844,0.0001293,2]
[346786491,1735287042723,-3149.52,0.0001293,2]
[346786493,1735287042732,-15547.2,0.0001293,2]
[346786495,1735287042742,-2493.166363,0.0001293,2]
[346786497,1735287042752,-5050.63,0.0001293,2]
[346786499,1735287042761,-1893.19,0.0001293,2]
[346786501,1735287042771,-11235.81,0.0001293,2]
[346786503,1735287042780,-6571.92,0.0001293,2]
[346786505,1735287042790,-3176.68,0.0001293,2]
[346786507,1735287042799,-23545.37,0.0001293,2]
[346786509,1735287042808,-500.0,0.0001293,2]
[346786511,1735287042817,-8646.92,0.0001293,2]
[346786513,1735287042828,-10161.12,0.0001293,2]
[346786515,1735287042838,-2371.88,0.0001293,2]
[346786517,1735287042847,-3952.32,0.0001293,2]
[346786519,1735287042856,-2319.04,0.0001293,2]
[346786521,1735287042866,-4066.03,0.0001293,2]
[346786523,1735287042875,-2776.73,0.0001293,2]
[346786525,1735287042884,-500.0,0.0001293,2]
[346786527,1735287042894,-1154.19,0.0001293,2]
[346786529,1735287042903,-500.0,0.00012931,2]
[346786532,1735287042913,-500.0,0.00012931,2]
[346786534,1735287042923,-578.57,0.00012931,2]
[346786536,1735287042932,-625.97,0.00012931,2]
[346786538,1735287042942,-712.34,0.00012931,2]
[346786540,1735287042951,-977.86,0.00012931,2]
[346786542,1735287042960,-500.0,0.00012931,2]
[346786544,1735287042969,-500.0,0.00012931,2]
[346786547,1735287042978,-500.0,0.00012931,2]
[346786549,1735287042988,-500.0,0.00012931,2]
[346786551,1735287042997,-505.3,0.00012931,2]
[346786553,1735287043006,-892.38,0.00012931,2]
[346786555,1735287043015,-506.74871392,0.00012931,2]
[346786557,1735287043025,-702.9,0.00012931,2]
[346786558,1735287043035,-500.0,0.00012931,2]
[346786559,1735287043043,-500.0,0.00012931,2]
[346786560,1735287043052,-509.74352181,0.00012931,2]
[346786561,1735287043061,-649.28828099,0.00012931,2]
[346786562,1735287043070,-788.02,0.00012931,2]
[346786563,1735287043080,-599.3,0.00012931,2]
[346786564,1735287043089,-500.0,0.00012931,2]
[346786565,1735287043098,-500.0,0.00012931,2]
[346786566,1735287043107,-500.0,0.00012931,2]
[346786569,1735287043117,-504.5411829,0.00012931,2]
[346786571,1735287043126,-535.04,0.00012931,2]
[346786573,1735287043135,-500.0,0.00012931,2]
[346786575,1735287043146,-1416.23,0.00012931,2]
[346786577,1735287043155,-500.0,0.00012931,2]
[346786579,1735287043165,-500.0,0.00012931,2]
[346786589,1735287043240,-500.0,0.00012931,2]
[346786591,1735287043250,-500.0,0.00012931,2]
[346786593,1735287043260,-500.0,0.00012931,2]
[346786595,1735287043269,-520.02,0.00012931,2]
[346786597,1735287043279,-500.0,0.00012931,2]
[346786599,1735287043288,-776.07,0.00012931,2]
[346786601,1735287043298,-1134.61,0.00012931,2]
[346786603,1735287043307,-782.41,0.00012931,2]
[346786604,1735287043316,-500.0,0.00012931,2]
[346786606,1735287043325,-500.0,0.00012931,2]
[346786609,1735287043337,-2275.59,0.00012931,2]
[346786610,1735287043346,-653.67,0.00012931,2]
[346786613,1735287043356,-1609.8,0.00012931,2]
[346786615,1735287043365,-648.28,0.00012931,2]
[346786616,1735287043374,-1641.5,0.00012931,2]
[346786618,1735287043383,-500.0,0.00012931,2]
[346786620,1735287043393,-663.31,0.00012931,2]
[346786622,1735287043402,-500.0,0.00012931,2]
[346786624,1735287043412,-500.0,0.00012931,2]
[346786626,1735287043421,-1570.48,0.00012931,2]
[346786628,1735287043430,-500.0,0.00012931,2]
[346786630,1735287043440,-500.0,0.00012931,2]
[346786632,1735287043450,-504.95,0.00012931,2]
[346786634,1735287043459,-1093.8,0.00012931,2]
[346786636,1735287043469,-500.0,0.00012931,2]
[346786638,1735287043479,-598.18,0.00012931,2]
[346786640,1735287043488,-500.0,0.00012931,2]
[346786642,1735287043498,-500.0,0.00012931,2]
[346786644,1735287043507,-836.68,0.00012931,2]
[346786646,1735287043516,-500.0,0.00012931,2]
[346786648,1735287043525,-1065.07,0.00012931,2]
[346786650,1735287043535,-500.0,0.00012931,2]
[346786652,1735287043544,-778.32,0.00012931,2]
[346786654,1735287043553,-523.06,0.00012931,2]
[346786656,1735287043563,-500.0,0.00012931,2]
[346786658,1735287043573,-500.0,0.00012931,2]
[346786660,1735287043583,-500.0,0.00012931,2]
[346786662,1735287043592,-966.09,0.00012931,2]
[346786664,1735287043601,-500.0,0.00012931,2]
[346786666,1735287043610,-500.0,0.00012931,2]
[346786668,1735287043619,-1312.18,0.00012931,2]
[346786670,1735287043629,-500.0,0.00012931,2]
[346786672,1735287043638,-500.0,0.00012931,2]
[346786674,1735287043647,-500.0,0.00012931,2]
[346786676,1735287043657,-500.0,0.00012931,2]
[346786678,1735287043666,-500.0,0.00012931,2]
[346786681,1735287043675,-1582.18,0.00012931,2]
[346786683,1735287043685,-500.0,0.00012931,2]
[346786685,1735287043694,-500.0,0.00012931,2]
[346786687,1735287043703,-500.0,0.00012931,2]
[346786689,1735287043712,-1161.27,0.00012931,2]
[346786691,1735287043721,-829.32,0.00012931,2]
[346786693,1735287043730,-808.18,0.00012931,2]
[346786695,1735287043739,-500.0,0.00012931,2]
[346786697,1735287043747,-500.0,0.00012931,2]
[346786699,1735287043757,-1773.99,0.00012931,2]
[346786701,1735287043766,-500.0,0.00012931,2]
[346786703,1735287043776,-702.78,0.00012931,2]
[346786705,1735287043785,-500.0,0.00012931,2]
[346786707,1735287043794,-572.3,0.00012931,2]
[346786709,1735287043803,-574.76,0.00012931,2]
[346786711,1735287043812,-1996.31,0.00012931,2]
[346786713,1735287043821,-500.0,0.00012931,2]
[346786715,1735287043831,-500.0,0.00012931,2]
[346786717,1735287043840,-747.65,0.00012931,2]
[346786719,1735287043850,-500.0,0.00012931,2]
[346786721,1735287043859,-544.32705813,0.00012931,2]
[346786723,1735287043868,-803.19,0.00012931,2]
[346786725,1735287043876,-500.0,0.00012931,2]
[346786727,1735287043885,-1915.78,0.00012931,2]
[346786729,1735287043895,-500.0,0.00012931,2]
[346786731,1735287043904,-805.66,0.00012931,2]
[346786733,1735287043913,-500.0,0.00012931,2]
[346786735,1735287043922,-500.0,0.00012931,2]
[346786737,1735287043931,-1015.68,0.00012931,2]
[346786739,1735287043940,-605.03,0.00012931,2]
[346786740,1735287043949,-500.0,0.00012931,2]
[346786742,1735287043958,-500.0,0.00012931,2]
[346786744,1735287043968,-500.0,0.00012931,2]
[346786747,1735287043977,-500.0,0.00012931,2]
[346786748,1735287043986,-500.0,0.00012931,2]
[346786750,1735287043995,-500.0,0.00012931,2]
[346786753,1735287044005,-1021.36,0.00012931,2]
[346786754,1735287044014,-665.58,0.00012931,2]
[346786756,1735287044023,-564.12,0.00012931,2]
[346786758,1735287044032,-500.0,0.00012931,2]
[346786760,1735287044041,-500.0,0.00012931,2]
[346786762,1735287044051,-500.0,0.00012931,2]
[346786764,1735287044059,-500.0,0.00012931,2]
[346786766,1735287044069,-500.0,0.00012931,2]
[346786768,1735287044080,-618.28727194,0.00012931,2]
[346786770,1735287044089,-500.0,0.00012931,2]
[346786772,1735287044098,-500.0,0.00012931,2]
[346786774,1735287044107,-500.0,0.00012931,2]
[346786776,1735287044116,-520.69,0.00012931,2]
[346786778,1735287044125,-500.0,0.00012931,2]
[346786780,1735287044134,-1231.48,0.00012931,2]
[346786782,1735287044143,-500.0,0.00012931,2]
[346786784,1735287044152,-500.0,0.00012931,2]
[346786786,1735287044161,-500.0,0.00012931,2]
[346786788,1735287044170,-1036.93,0.00012931,2]
[346786790,1735287044179,-500.0,0.00012931,2]
[346786792,1735287044191,-566.99122576,0.00012931,2]
[346786794,1735287044200,-500.0,0.00012931,2]
[346786796,1735287044209,-500.0,0.00012931,2]
[346786798,1735287044219,-1057.08,0.00012931,2]
[346786801,1735287044228,-500.0,0.00012931,2]
[346786802,1735287044237,-500.0,0.00012931,2]
[346786804,1735287044247,-500.0,0.00012931,2]
[346786806,1735287044256,-964.3,0.00012931,2]
[346786808,1735287044266,-500.0,0.00012931,2]
[346786810,1735287044275,-500.0,0.00012931,2]
[346786812,1735287044284,-511.25,0.00012931,2]
[346786815,1735287044294,-2481.52,0.00012931,2]
[346786817,1735287044304,-1590.86,0.00012931,2]
[346786819,1735287044316,-500.0,0.00012931,2]
[346786821,1735287044326,-500.0,0.00012931,2]
[346786823,1735287044341,-500.0,0.00012931,2]
[346786825,1735287044350,-1455.42,0.00012931,2]
[346786827,1735287044360,-783.34,0.00012931,2]
[346786829,1735287044369,-500.0,0.00012931,2]
[346786831,1735287044379,-500.0,0.00012931,2]
[346786833,1735287044389,-866.08,0.00012931,2]
[346786835,1735287044398,-500.0,0.00012931,2]
[346786837,1735287044408,-500.0,0.00012931,2]
[346786839,1735287044418,-1451.9,0.00012931,2]
[346786841,1735287044428,-500.0,0.00012931,2]
[346786843,1735287044438,-500.0,0.00012931,2]
[346786845,1735287044447,-697.76,0.00012931,2]
[346786847,1735287044458,-500.0,0.00012931,2]
[346786849,1735287044468,-855.03,0.00012931,2]
[346786851,1735287044478,-536.47,0.00012931,2]
[346786853,1735287044487,-575.98,0.00012931,2]
[346786855,1735287044497,-2175.99,0.00012931,2]
[346786857,1735287044506,-500.0,0.00012931,2]
[346786859,1735287044515,-500.0,0.00012931,2]
[346786861,1735287044524,-954.14,0.00012931,2]
[346786863,1735287044534,-500.0,0.00012931,2]
[346786865,1735287044543,-500.0,0.00012931,2]
[346786867,1735287044552,-500.0,0.00012931,2]
[346786869,1735287044562,-500.0,0.00012931,2]
[346786871,1735287044571,-500.0,0.00012931,2]
[346786873,1735287044585,-2697.35,0.00012931,2]
[346786875,1735287044595,-500.0,0.00012931,2]
[346786877,1735287044604,-500.0,0.00012931,2]
[346786879,1735287044613,-500.0,0.00012931,2]
[346786881,1735287044623,-500.0,0.00012931,2]
[346786883,1735287044632,-1267.86,0.00012931,2]
[346786885,1735287044641,-941.46,0.00012931,2]
[346786887,1735287044650,-500.0,0.00012931,2]
[346786889,1735287044662,-1735.17,0.00012931,2]
[346786891,1735287044671,-500.0,0.00012931,2]
[346786893,1735287044680,-500.0,0.00012931,2]
[346786895,1735287044689,-638.49608832,0.00012931,2]
[346786896,1735287044698,-1162.03,0.00012931,2]
[346786897,1735287044707,-500.0,0.00012931,2]
[346786898,1735287044715,-500.0,0.00012931,2]
[346786899,1735287044724,-500.0,0.00012931,2]
[346786900,1735287044733,-500.0,0.00012931,2]
[346786901,1735287044741,-881.41,0.00012931,2]
[346786902,1735287044750,-500.0,0.00012931,2]
[346786903,1735287044759,-734.39,0.00012931,2]
[346786905,1735287044768,-647.24,0.00012931,2]
[346786907,1735287044777,-500.0,0.00012931,2]
[346786909,1735287044786,-500.0,0.00012931,2]
[346786911,1735287044796,-500.0,0.00012931,2]
[346786913,1735287044805,-1075.45,0.00012931,2]
[346786915,1735287044814,-500.0,0.00012931,2]
[346786916,1735287044823,-1805.86,0.00012931,2]
[346786919,1735287044833,-716.01,0.00012931,2]
[346786920,1735287044842,-1002.67,0.00012931,2]
[346786923,1735287044851,-500.0,0.00012931,2]
[346786925,1735287044861,-2739.11,0.00012931,2]
[346786927,1735287044870,-520.08,0.00012931,2]
[346786928,1735287044879,-500.0,0.00012931,2]
[346786930,1735287044888,-500.0,0.00012931,2]
[346786933,1735287044898,-268.57832306,0.00012931,2]
[346786935,1735287044907,-500.0,0.00012931,2]
[346786937,1735287044916,-1000.57,0.00012931,2]
[346786939,1735287044924,-500.0,0.00012931,2]
[346786940,1735287044933,-500.0,0.00012931,2]
[346786942,1735287044942,-1558.49,0.00012931,2]
[346786945,1735287044951,-948.25,0.00012931,2]
[346786946,1735287044961,-1129.92,0.00012931,2]
[346786949,1735287044970,-788.34,0.00012931,2]
[346786950,1735287044979,-500.0,0.00012931,2]
[346786952,1735287044988,-277.15,0.00012931,2]
[346786954,1735287044998,-500.0,0.00012931,2]
[346786956,1735287045006,-928.41,0.00012931,2]
[346786958,1735287045013,-500.0,0.00012931,2]
[346786960,1735287045021,-500.0,0.00012931,2]
[346786962,1735287045028,-1087.55,0.00012931,2]
[346786964,1735287045037,-2572.77,0.00012931,2]
[346786966,1735287045047,-500.0,0.00012931,2]
[346786968,1735287045056,-835.22,0.00012931,2]
[346786970,1735287045065,-502.32,0.00012931,2]
[346786972,1735287045074,-500.0,0.00012931,2]
[346786974,1735287045085,-500.0,0.00012931,2]
[346786976,1735287045095,-2003.08,0.00012931,2]
[346786978,1735287045104,-508.37295874,0.00012931,2]
[346786980,1735287045114,-1294.43,0.00012931,2]
[346786982,1735287045123,-500.0,0.00012931,2]
[346786984,1735287045132,-500.0,0.00012931,2]
[346786986,1735287045142,-500.0,0.00012931,2]
[346786988,1735287045151,-570.45,0.00012931,2]
[346786990,1735287045161,-500.0,0.00012931,2]
[346786992,1735287045170,-500.0,0.00012931,2]
[346786994,1735287045179,-500.0,0.00012931,2]
[346786996,1735287045191,-18376.58,0.00012931,2]
[346786998,1735287045200,-500.0,0.00012931,2]
[346787000,1735287045210,-503.08106895,0.00012931,2]
[346787002,1735287045219,-1401.95,0.00012931,2]
[346787004,1735287045228,-500.0,0.00012931,2]
[346787006,1735287045238,-514.44,0.00012931,2]
[346787008,1735287045247,-563.16,0.00012931,2]
[346787010,1735287045256,-500.0,0.00012931,2]
[346787012,1735287045266,-503.67431761,0.00012931,2]
[346787014,1735287045276,-500.0,0.00012931,2]
[346787016,1735287045285,-502.82238615,0.00012931,2]
[346787018,1735287045294,-1988.97,0.00012931,2]
[346787019,1735287045303,-500.0,0.00012931,2]
[346787020,1735287045312,-500.0,0.00012931,2]
[346787021,1735287045322,-500.0,0.00012931,2]
[346787022,1735287045339,-500.0,0.00012931,2]
[346787023,1735287045349,-500.0,0.00012931,2]
[346787024,1735287045358,-2663.71,0.00012931,2]
[346787025,1735287045368,-3581.42,0.00012931,2]
[346787026,1735287045377,-500.0,0.00012931,2]
[346787027,1735287045387,-1777.42,0.00012931,2]
[346787028,1735287045397,-500.0,0.00012931,2]
[346787029,1735287045407,-513.25884947,0.00012931,2]
[346787030,1735287045417,-578.29,0.00012931,2]
[346787032,1735287045427,-1191.88,0.00012931,2]
[346787034,1735287045437,-1496.17,0.00012931,2]
[346787035,1735287045447,-500.0,0.00012931,2]
[346787037,1735287045458,-500.0,0.00012931,2]
[346787039,1735287045468,-500.0,0.00012931,2]
[346787041,1735287045478,-500.0,0.00012931,2]
[346787043,1735287045487,-755.3,0.00012931,2]
[346787045,1735287045496,-500.0,0.00012931,2]
[346787047,1735287045506,-588.75,0.00012931,2]
[346787049,1735287045516,-500.0,0.00012931,2]
[346787051,1735287045525,-500.0,0.00012931,2]
[346787052,1735287045535,-500.0,0.00012931,2]
[346787055,1735287045545,-500.0,0.00012931,2]
[346787056,1735287045555,-758.87,0.00012931,2]
[346787059,1735287045565,-500.0,0.00012931,2]
[346787060,1735287045575,-500.0,0.00012931,2]
[346787062,1735287045591,-500.0,0.00012931,2]
[346787064,1735287045602,-500.0,0.00012931,2]
[346787066,1735287045612,-500.0,0.00012931,2]
[346787068,1735287045622,-500.0,0.00012931,2]
[346787070,1735287045632,-500.0,0.00012931,2]
[346787072,1735287045642,-553.29,0.00012931,2]
[346787074,1735287045653,-500.0,0.00012931,2]
[346787076,1735287045664,-500.0,0.00012931,2]
[346787078,1735287045675,-500.0,0.00012931,2]
[346787079,1735287045687,-689.14,0.00012931,2]
[346787080,1735287045698,-1112.44,0.00012931,2]
[346787081,1735287045708,-500.0,0.00012931,2]
[346787082,1735287045719,-500.0,0.00012931,2]
[346787083,1735287045730,-513.88,0.00012931,2]
[346787084,1735287045741,-1484.8,0.00012931,2]
[346787085,1735287045751,-837.12,0.00012931,2]
[346787086,1735287045761,-1614.03,0.00012931,2]
[346787087,1735287045773,-500.0,0.00012931,2]
[346787088,1735287045783,-283.92671316,0.00012931,2]
[346787089,1735287045794,-500.0,0.00012931,2]
[346787090,1735287045805,-954.81,0.00012931,2]
[346787091,1735287045815,-578.84,0.00012931,2]
[346787092,1735287045825,-500.0,0.00012931,2]
[346787093,1735287045843,-500.0,0.00012931,2]
[346787094,1735287045853,-922.61,0.00012931,2]
[346787095,1735287045864,-716.96,0.00012931,2]
[346787096,1735287045874,-500.0,0.00012931,2]
[346787097,1735287045885,-500.0,0.00012931,2]
[346787098,1735287045895,-151.0,0.00012931,2]
[346787099,1735287045906,-330.96,0.00012931,2]
[346787100,1735287045916,-172.39,0.00012931,2]
[346787101,1735287045926,-500.0,0.00012931,2]
[346787102,1735287045936,-155.391422,0.00012931,2]
[346787103,1735287045945,-561.99,0.00012931,2]
[346787104,1735287045955,-4671.69,0.00012931,2]
[346787105,1735287045965,-1487.5,0.00012931,2]
[346787106,1735287045975,-2943.21,0.00012931,2]
[346787107,1735287045984,-341.19752778,0.00012931,2]
[346787108,1735287045994,-500.0,0.00012931,2]
[346787109,1735287046004,-902.0,0.00012932,2]
[346787110,1735287046014,-775.36,0.00012932,2]
[346787111,1735287046024,-500.0,0.00012932,2]
[346787112,1735287046033,-500.0,0.00012932,2]
[346787113,1735287046043,-642.2,0.00012932,2]
[346787114,1735287046052,-500.0,0.00012932,2]
[346787115,1735287046062,-500.0,0.00012932,2]
[346787116,1735287046071,-500.0,0.00012932,2]
[346787118,1735287046085,-500.0,0.00012932,2]
[346787119,1735287046095,-500.0,0.00012932,2]
[346787121,1735287046105,-500.0,0.00012932,2]
[346787122,1735287046114,-500.0,0.00012932,2]
[346787123,1735287046124,-690.44,0.00012932,2]